{"text_format":"1","workbook":"xlsx","n_sheets":3,"sheets":["List1","List2","List3"],"not_rendered":{"charts":0,"images":0,"macros":1,"external_links":0,"defined_names":0,"comments":0,"pivot_tables":0},"unopened":[],"bounds":{"document_bytes":16777216,"sheet_cells":100000,"rows_first":2000,"rows_last":500,"rows_between":2000,"halvings":0,"cell_chars":16384,"cell_head_chars":4096},"cells_cut":0,"cells_raw":0,"read":"whole","date_system":"1900"}

{"sheet":"List1","index":0,"n_rows":69,"n_cols":9,"rows_kept":69,"cut":false,"hidden":false,"merged":[[65,1,65,8],[3,8,4,8],[3,0,4,0],[38,0,38,8],[32,0,32,1],[35,0,35,1],[37,0,37,1],[36,0,36,1],[5,0,6,0],[34,0,34,1],[33,0,33,1],[30,0,30,1],[14,8,18,8],[5,8,6,8],[12,0,12,1],[52,0,52,8],[26,2,26,8],[39,0,39,8],[16,0,17,0],[19,2,19,8],[42,0,42,8],[54,0,54,1],[40,0,40,8],[47,0,47,8],[44,0,44,8],[41,0,41,8],[48,0,48,8],[45,0,45,8],[49,0,49,8],[50,0,50,8],[46,0,46,8],[43,0,43,8],[51,0,51,8]]}
["Položkový výkaz činností –  Příloha ke Smlouvě –  KoPÚ Dolní Bojanovice"]
[null,"Hlavní  celek  / Dílčí část Hlavního celku","Měrná jednotka","Počet Měrných jednotek","Cena za Měrnou jednotku bez \nDPH v Kč 10)","Cena bez DPH\nv Kč 10)","DPH","Cena vč. DPH 10)","Termín předání k akceptačnímu řízení"]
["6.2","Hlavní celek 1 „Přípravné práce“"]
["6.2.1","Revize stávajícího bodového pole 6)"," bod",25,null,{"$f":"D4*E4","v":0},null,{"$f":"F4*1.21","v":0},"xx.xx.xxxx 4)"]
[null,"Doplnění stávajícího bodového pole 6)","bod",5,null,{"$f":"D5*E5","v":0},null,{"$f":"F5*1.21","v":0}]
["6.2.2","Podrobné měření polohopisu v obvodu KoPÚ mimo trvalé porosty 1)","ha",1181,null,0,null,0,"xx.xx.xxxx 4)"]
[null,"Podrobné měření polohopisu v obvodu KoPÚ v trvalých porostech 1)","ha",104,null,0,null,0]
["6.2.4","Zjišťování hranic obvodu KoPÚ, geometrické plány pro stanovení obvodu KoPÚ, předepsaná stabilizace dle vyhlášky č. 357/2013 Sb."," 100 bm",334,null,0,null,0,"xx.xx.xxxx 4)"]
["6.2.5","Zjišťování hranic pozemků neřešených dle § 2 Zákona 14)"," 100 bm",1,null,0,null,0,"xx.xx.xxxx 4)"]
["6.2.6","Šetření průběhu vlastnických hranic řešených pozemků s porosty pro účely návrhu KoPÚ, včetně označení lomových bodů 6), 8)"," 100 bm",3100,null,0,null,0,"xx.xx.xxxx 4)"]
["6.2.7","Rozbor současného stavu                      ","ha",1285,null,0,null,0,"xx.xx.xxxx 4)"]
["6.2.8","Dokumentace k soupisu nároků vlastníků pozemků","ha",1285,null,0,null,{"$f":"F12*1.21","v":0},"xx.xx.xxxx 4)"]
["„Přípravné práce“ celkem",null,null,null,null,{"$f":"SUM(F4:F12)","v":0},null,{"$f":"SUM(H4:H12)","v":0},"2028-03-31"]
["6.3","Hlavní celek 2 „Návrhové práce“ "]
["6.3.1","Vypracování plánu společných zařízení (\"PSZ\")","ha",1285,null,{"$f":"D15*E15","v":0},null,{"$f":"F15*1.21","v":0},"31.1.2029"]
["6.3.1 i) a)","Výškopisné zaměření zájmového území dle čl. 6.3.1 i) a) Smlouvy 2) ","ha",90,null,{"$f":"D16*E16","v":0},null,{"$f":"F16*1.21","v":0}]
["6.3.1 i) b)","DTR liniových dopravních staveb PSZ pro stanovení plochy záboru půdy stavbami dle čl. 6.3.1 i) b) Smlouvy 2)","100 bm",190,null,0,null,0]
[null,"DTR liniových vodohospodářských a protierozních staveb PSZ pro stanovení plochy záboru půdy stavbami dle čl. 6.3.1 i) b) Smlouvy 2)","100 bm",15,null,0,null,0]
["6.3.1 i) c)","DTR vodohospodářských staveb PSZ dle čl. 6.3.1 i) c) Smlouvy 2)","ks",1,null,0,null,0]
["6.3.2 h)","Aktualizace PSZ 11)"]
["6.3.2 h) i)","Aktualizace PSZ do 10 ha 11)","ha",1,null,{"$f":"D21*E21","v":0},null,{"$f":"F21*1.21","v":0},"na výzvu Objednatele v dohodnuté lhůtě"]
["6.3.2 h) ii)","Aktualizace PSZ do 50 ha 11)","ha",1,null,{"$f":"D22*E22","v":0},null,{"$f":"F22*1.21","v":0},"na výzvu Objednatele v dohodnuté lhůtě"]
["6.3.2 h) iii)","Aktualizace PSZ nad 50 ha 11)","ha",1,null,0,null,0,"na výzvu Objednatele v dohodnuté lhůtě"]
["6.3.2 ","Vypracování návrhu nového uspořádání pozemků k jeho vystavení dle § 11 odst. 1 Zákona","ha",1285,null,0,null,0,"28.2.2030"]
["6.3.3","Předložení aktuální dokumentace návrhu KoPÚ","ks",2,null,0,null,0,"do 1 měsíce od výzvy Objednatele"]
["6.3.4","Zhotovení podkladů pro změnu katastrální hranice 3), 7)","100 bm",1,null,0,null,0,"do 3 měsíců od výzvy Objednatele"]
["6.3.5","Aktualizace návrhu po ukončení odvolacího řízení 12)"]
["6.3.5 i)","Aktualizace návrhu po ukončení odvolacího řízení do 10 ha 12)","ha",1,null,{"$f":"D28*E28","v":0},null,{"$f":"F28*1.21","v":0},"do 3 měsíců od výzvy Objednatele"]
["6.3.5 ii)","Aktualizace návrhu po ukončení odvolacího řízení do 50 ha 12)","ha",1,null,{"$f":"D29*E29","v":0},null,{"$f":"F29*1.21","v":0},"do 3 měsíců od výzvy Objednatele"]
["6.3.5 iii)","Aktualizace návrhu po ukončení odvolacího řízení nad 50 ha 12)","ha",1,null,0,null,0,"do 3 měsíců od výzvy Objednatele"]
["„Návrhové práce“ celkem",null,null,null,null,{"$f":"SUM(F15:F30)","v":0},null,{"$f":"SUM(H15:H30)","v":0}]
[null,"Hlavní celek 3 „Mapové dílo“ ","ha",1285,null,{"$f":"D32*E32","v":0},null,{"$f":"F32*1.21","v":0},"do 3 měsíců od výzvy Objednatele"]
["„Mapové dílo“ celkem",null,null,null,null,{"$f":"SUM(F32)","v":0},null,{"$f":"SUM(H32)","v":0}]
["Rekapitulace kalkulace ceny"]
["1. Hlavní celek 1 celkem v Kč",null,null,null,null,{"$f":"F13","v":0},null,{"$f":"H13","v":0}]
["2. Hlavní celek 2 celkem v Kč",null,null,null,null,{"$f":"F31","v":0},null,{"$f":"H31","v":0}]
["3. Hlavní celek 3 celkem v Kč",null,null,null,null,{"$f":"F33","v":0},null,{"$f":"H33","v":0}]
["Celková cena v Kč",null,null,null,null,{"$f":"SUM(F35:F37)","v":0},null,{"$f":"SUM(H35:H37)","v":0}]
[]
["1) Jedná se o volitelnou položku v Zadávací dokumentaci – rozdělení položek na „Podrobné měření polohopisu v obvodu KoPÚ mimo trvalé porosty / v trvalých porostech\", případně jejich sloučení do jedné položky „Podrobné měření polohopisu v obvodu KoPÚ\" stanoví Objednatel v Zadávací dokumentaci na základě výchozích podmínek v daném k. ú. (výrazný či nevýrazný podíl trvalých porostů v řešeném území mající / nemající vliv na složitost díla a jeho cenu)."]
["2) Jedná se o položky, u kterých nelze předem objektivně stanovit přesný počet Měrných jednotek, zadavatel proto stanoví v Zadávací dokumentaci počet Měrných jednotek kvalifikovaným odhadem."]
["3) V případě, že se v době zadávání Veřejné zakázky nepředpokládá změna katastrální hranice, bude vždy uvedena 1 Měrná jednotka, jejíž výše je v Zadávací dokumentaci limitovaná. "]
["4) Závazné termíny plnění dílčích částí Hlavního celku budou stanoveny Zpracovatelem s ohledem na podmínky stanovené v Zadávací dokumentaci. Číslování jednotlivých dílčích částí Hlavního celku nemusí odpovídat časové posloupnosti postupu prací, lze je stanovit podle předpokládaného průběhu prací. "]
["5) Termín stanovuje Objednatel. "]
["6) Volitelná položka, v případě, že v rámci KoPÚ nebude potřeba, položku odstranit. Nepoužije se v případě KoPÚ v bývalých VÚj."]
["7) Počet Měrných jednotek bude stanoven podle původní katastrální hranice."]
["8) Volitelná položka pro případ, kdy je vhodné zahrnout do obvodu KoPÚ řešené pozemky s porosty. Vlastnické hranice v lesních porostech se v terénu vyšetří, zaměří a dočasně stabilizují a výsledky se použijí pro návrh nového uspořádání pozemků a pro mapové dílo. Takto zadávané měrné jednotky budou zakresleny v přehledné mapě s předpokládaným obvodem KoPÚ."]
["9) Volitelná položka pro případ, kdy je KoPÚ zpracovávána na podkladě rastrové mapy a je nutné provést vektorizaci pro účely kontroly souladu popisných a grafických údajů ISKN; nepoužije se v územích, kde existuje DKM, KM-D, KMD nebo kde je již zpracovaná. Nepoužije se v případě KoPÚ v bývalých VÚj."]
["10) Ceny bez DPH jsou uváděny na celé Kč, zaokrouhlené směrem nahoru, ceny s DPH jsou uváděny s přesností na dvě desetinná místa. V případě změny sazby DPH změnit hodnotu u příslušných činností ve skrytém sloupci G."]
["11) Vždy bude uvedena 1 Měrná jednotka, jejíž cena je v Zadávací dokumentaci limitovaná (pozn.: do 10 ha - sedminásobek, do 50 ha - čtyřnásobek, nad 50 ha jeden a půl násobek). V případě, že dojde k aktualizaci PSZ dle čl. 6.3.2 h) Smlouvy, do MJ se bude počítat výměra všech navržených opatření v ha, uvedená v technické zprávě PSZ již převzaté podle čl. 6.3.1 Smlouvy. Do této výměry se nezapočítává výměra agrotechnických a organizačních opatření."]
["12) Vždy bude uvedena 1 Měrná jednotka, jejíž cena je v Zadávací dokumentaci limitovaná (pozn.: do 10 ha - sedminásobek, do 50 ha - čtyřnásobek, nad 50 ha jeden a půl násobek). V případě, že dojde k aktualizaci návrhu po ukončení odvolacího řízení dle čl. 6.3.5 Smlouvy, počítá se součet výměry jednotlivých pozemků dotčených změnou uspořádání pozemků v již schváleném návrhu v ha, zaokrouhlený směrem nahoru. Za aktualizaci není považována změna jména vlastníka nebo přenesení věcných a jiných práv a povinností, poznámek apod., zapsaných do KN po vydání rozhodnutí o schválení návrhu."]
["13) Jedná se o součet položek ve svislých sloupcích, nelze násobit aktuální výší DPH. Tyto položky budou uvedeny v čl. 3.1 Smlouvy."]
["14) Bude uvedena 1 Měrná jednotka, jejíž cena je v Zadávací dokumentaci limitovaná (nesmí bý vyšší než je cena za Měrnou jednotku uvedenou v dílčí části 6.2.4) nebo se uvede kvalifikovaný odhad."]
[]
["Poznámka:"]
[null,"hodnota A – pozemky řešené dle § 2 Zákona"]
[null,"hodnota B – pozemky neřešené dle § 2 Zákona"]
[null,"hodnota C1 až C13 – určí Objednatel"]
[null,"C3 + C4 = A + B"]
[null,"hodnota D – určí Objednatel"]
[null,"nevyplňovat"]
[null,"DTR – dokumentace technického řešení PSZ"]
[]
[null,"Pro automatický výpočet je nutné „Povolit obsah“"]
[null,"D –  Počet Měrných jednotek – celé číslo – vyplní zadavatel Veřejné zakázky."]
[null,"E –  Cena za Měrnou jednotku bez DPH – celé číslo (nastaveno automatické zaokrouhlování směrem nahoru pro případ použití inflační doložky), vyplní uchazeč."]
[null,"F –  Cena bez DPH – nastaveno automatické zaokrouhlování směrem nahoru, automatický výpočet."]
[null,"G – Skrytý sloupec – obsahuje aktuální DPH 21 %."]
[null,"H –  Cena vč. DPH – nastaveno automatické zaokrouhlování směrem nahoru."]

{"sheet":"List2","index":1,"n_rows":0,"n_cols":0,"rows_kept":0,"cut":false,"hidden":false,"merged":[]}

{"sheet":"List3","index":2,"n_rows":0,"n_cols":0,"rows_kept":0,"cut":false,"hidden":false,"merged":[]}